[Event "CZE-ch Women 2019"]
[Site "Prague"]
[Date "2019.06.18"]
[Round "4.4"]
[White "Laurincova, Kristyna"]
[Black "Sikorova, Olga"]
[Result "1/2-1/2"]
[ECO "C07"]
[WhiteElo "1984"]
[BlackElo "2248"]
[Annotator "NA"]
[PlyCount "119"]
[EventDate "2019.06.15"]
[EventType "tourn"]
[EventCountry "CZE"]
[SourceTitle "playchess.com"]
[Source "ChessBase"]
[SourceQuality "1"]
[TimeControl "40/5400+30:1800+30"]

1. e4 {[%emt 0:00:00]} e6 {[%emt 0:00:00]} 2. d4 {[%emt 0:00:00]} d5 {[%emt 0:00:00]} 3. Nd2 {[%emt 0:00:00]} c5 {[%emt 0:00:00]} 4. exd5 {[%emt 0:00:00]} Qxd5 {[%emt 0:00:00]} 5. Ngf3 {[%emt 0:00:05]} cxd4 {[%emt 0:00:08]} 6. Bc4 {[%emt 0:00:07]} Qd6 {[%emt 0:00:05]} 7. Qe2 {[%emt 0:00:32]} Nf6 {[%emt 0:04:19]} 8. Nb3 {[%emt 0:00:25]} Nc6 {[%emt 0:05:31]} 9. Bg5 {[%emt 0:00:31]} Be7 {[%emt 0:04:43]} 10. O-O-O {[%emt 0:02:07]} a6 {[%emt 0:08:10]} 11. Kb1 {[%emt 0:04:59]} b5 {[%emt 0:07:25]} 12. Bd3 {[%emt 0:03:51]} O-O {[%emt 0:05:54]} 13. Nbxd4 {[%emt 0:04:30]} Nxd4 {[%emt 0:00:29]} 14. Nxd4 {[%emt 0:00:08]} Qc7 {[%emt 0:04:22]} 15. Rhe1 {[%emt 0:05:16]} Re8 {[%emt 0:07:58]} 16. Nf3 {[%emt 0:02:07]} Bb7 {[%emt 0:01:29]} 17. Ne5 {[%emt 0:08:54]} Bd5 {[%emt 0:05:39]} 18. Ng4 {[%emt 0:20:55]} Nxg4 {[%emt 0:13:50]} 19. Bxe7 {[%emt 0:06:00]} Nxf2 {[%emt 0:09:48]} 20. Qxf2 {[%emt 0:00:02]} Qxe7 {[%emt 0:08:28]} 21. Bxh7+ {[%emt 0:00:03]} Kxh7 {[%emt 0:00:16]} 22. Rxd5 {[%emt 0:00:04]} Rad8 {[%emt 0:02:47]} 23. Rh5+ {[%emt 0:02:46]} Kg8 {[%emt 0:00:19]} 24. a3 {[%emt 0:03:30]} Qf6 {[%emt 0:03:32]} 25. Qxf6 {[%emt 0:02:20]} gxf6 {[%emt 0:00:02]} 26. Kc1 {[%emt 0:02:52]} Kg7 {[%emt 0:00:50]} 27. Re3 {[%emt 0:01:26]} f5 {[%emt 0:01:04]} 28. Rg3+ {[%emt 0:03:03]} Kf6 {[%emt 0:00:15]} 29. Rh6+ {[%emt 0:00:21]} Ke5 {[%emt 0:00:25]} 30. Re3+ {[%emt 0:00:47]} Kd4 {[%emt 0:02:35]} 31. Rd3+ {[%emt 0:00:01]} Ke4 {[%emt 0:00:58]} 32. Rhh3 {[%emt 0:05:39]} f4 {[%emt 0:00:59]} 33. Kd2 {[%emt 0:00:30]} Rg8 {[%emt 0:01:32]} 34. Rxd8 {[%emt 0:01:12]} Rxd8+ {[%emt 0:00:01]} 35. Ke2 {[%emt 0:00:48]} Rg8 {[%emt 0:00:23]} 36. Kf2 {[%emt 0:02:19]} Rc8 {[%emt 0:00:24]} 37. c3 {[%emt 0:01:31]} a5 {[%emt 0:00:05]} 38. Ke2 {[%emt 0:03:42]} e5 {[%emt 0:02:12]} 39. Rd3 {[%emt 0:00:02]} Rg8 {[%emt 0:00:40]} 40. g3 {[%emt 0:01:09]} Rh8 {[%emt 0:00:41]} 41. h4 {[%emt 0:31:17]} fxg3 {[%emt 0:01:50]} 42. Rxg3 {[%emt 0:00:00]} Rxh4 {[%emt 0:00:41]} 43. Re3+ {[%emt 0:00:00]} Kd5 {[%emt 0:01:45]} 44. b3 {[%emt 0:00:00]} Rh2+ {[%emt 0:21:30]} 45. Kd3 {[%emt 0:00:00]} e4+ {[%emt 0:00:42]} 46. Rxe4 {[%emt 0:00:00]} Rd2+ {[%emt 0:02:41]} 47. Kxd2 {[%emt 0:00:00]} Kxe4 {[%emt 0:00:32]} 48. a4 {[%emt 0:00:00]} bxa4 {[%emt 0:00:02]} 49. bxa4 {[%emt 0:00:00]} f5 {[%emt 0:02:23]} 50. Ke2 {[%emt 0:00:00]} Kd5 {[%emt 0:01:31]} 51. Kd3 {[%emt 0:00:00]} Kc5 {[%emt 0:00:09]} 52. c4 {[%emt 0:00:00]} Kb4 {[%emt 0:01:48]} 53. Kd4 {[%emt 0:00:00]} Kxa4 {[%emt 0:01:13]} 54. c5 {[%emt 0:00:00]} Kb5 {[%emt 0:00:01]} 55. Kd5 {[%emt 0:00:00]} f4 {[%emt 0:00:28]} 56. c6 {[%emt 0:00:00]} f3 {[%emt 0:00:15]} 57. c7 {[%emt 0:00:00]} f2 {[%emt 0:00:03]} 58. c8=Q {[%emt 0:00:00]} f1=Q {[%emt 0:00:04]} 59. Qc5+ {[%emt 0:00:00]} Ka4 {[%emt 0:00:39]} 60. Qc4+ {[%emt 0:00:00]} 1/2-1/2

[Event "CZE-ch Women 2019"]
[Site "Prague"]
[Date "2019.06.18"]
[Round "4.5"]
[White "Kulovana, Eva"]
[Black "Olsarova, Karolina"]
[Result "1/2-1/2"]
[ECO "C67"]
[WhiteElo "2208"]
[BlackElo "2260"]
[Annotator "NA"]
[PlyCount "114"]
[EventDate "2019.06.15"]
[EventType "tourn"]
[EventCountry "CZE"]
[SourceTitle "playchess.com"]
[Source "ChessBase"]
[SourceQuality "1"]
[TimeControl "40/5400+30:1800+30"]

1. e4 {[%emt 0:00:00]} e5 {[%emt 0:00:00]} 2. Nf3 {[%emt 0:00:00]} Nc6 {[%emt 0:00:11]} 3. Bb5 {[%emt 0:00:00]} Nf6 {[%emt 0:00:10]} 4. O-O {[%emt 0:00:03]} Nxe4 {[%emt 0:00:12]} 5. Re1 {[%emt 0:00:31]} Nd6 {[%emt 0:00:11]} 6. Nxe5 {[%emt 0:00:17]} Be7 {[%emt 0:00:17]} 7. Bf1 {[%emt 0:00:29]} Nf5 {[%emt 0:00:13]} 8. Nf3 {[%emt 0:01:15]} O-O {[%emt 0:01:05]} 9. d4 {[%emt 0:00:55]} d5 {[%emt 0:00:09]} 10. h3 {[%emt 0:02:01]} Bf6 {[%emt 0:21:57]} 11. c3 {[%emt 0:00:38]} Nd6 {[%emt 0:04:07]} 12. Bd3 {[%emt 0:02:11]} Bf5 {[%emt 0:01:21]} 13. Bxf5 {[%emt 0:02:17]} Nxf5 {[%emt 0:00:03]} 14. Bf4 {[%emt 0:00:12]} Qd7 {[%emt 0:07:57]} 15. Qd3 {[%emt 0:16:26]} Rfe8 {[%emt 0:08:58]} 16. Nbd2 {[%emt 0:01:05]} Nfe7 {[%emt 0:08:13]} 17. Qb5 {[%emt 0:11:34]} b6 {[%emt 0:02:56]} 18. Qa6 {[%emt 0:03:06]} Ng6 {[%emt 0:05:07]} 19. Bg3 {[%emt 0:00:43]} Be7 {[%emt 0:00:27]} 20. Ne5 {[%emt 0:14:22]} Ncxe5 {[%emt 0:02:27]} 21. Bxe5 {[%emt 0:00:43]} c6 {[%emt 0:03:05]} 22. Nf3 {[%emt 0:01:12]} Bf8 {[%emt 0:00:34]} 23. a4 {[%emt 0:03:46]} Re6 {[%emt 0:03:43]} 24. Bg3 {[%emt 0:03:53]} Qc8 {[%emt 0:03:22]} 25. Qd3 {[%emt 0:03:32]} Bd6 {[%emt 0:02:26]} 26. Rxe6 {[%emt 0:02:11]} Qxe6 {[%emt 0:00:06]} 27. Re1 {[%emt 0:00:24]} Qf6 {[%emt 0:01:04]} 28. Bxd6 {[%emt 0:04:31]} Qxd6 {[%emt 0:00:02]} 29. g3 {[%emt 0:00:52]} Qd7 {[%emt 0:05:33]} 30. Kg2 {[%emt 0:04:00]} Re8 {[%emt 0:01:57]} 31. Rxe8+ {[%emt 0:04:32]} Qxe8 {[%emt 0:00:03]} 32. Qf5 {[%emt 0:00:25]} h6 {[%emt 0:05:00]} 33. h4 {[%emt 0:01:22]} Nf8 {[%emt 0:08:34]} 34. Qf4 {[%emt 0:05:01]} c5 {[%emt 0:01:47]} 35. dxc5 {[%emt 0:01:22]} bxc5 {[%emt 0:00:03]} 36. Qd6 {[%emt 0:00:24]} Qxa4 {[%emt 0:01:17]} 37. Qxc5 {[%emt 0:00:29]} Qd7 {[%emt 0:01:41]} 38. Ne5 {[%emt 0:03:51]} Qe6 {[%emt 0:01:19]} 39. Nc6 {[%emt 0:03:42]} Ng6 {[%emt 0:00:06]} 40. Kh2 {[%emt 0:02:03]} Kh7 {[%emt 0:01:34]} 41. Nb4 {[%emt 0:11:45]} Qe5 {[%emt 0:09:40]} 42. Qxa7 {[%emt 0:09:54]} Nxh4 {[%emt 0:08:04]} 43. Qxf7 {[%emt 0:00:37]} d4 {[%emt 0:00:18]} 44. Qf4 {[%emt 0:07:37]} Qxf4 {[%emt 0:01:24]} 45. gxf4 {[%emt 0:00:05]} dxc3 {[%emt 0:00:14]} 46. bxc3 {[%emt 0:00:05]} Nf3+ {[%emt 0:02:10]} 47. Kg3 {[%emt 0:01:25]} Nd2 {[%emt 0:00:10]} 48. Nd5 {[%emt 0:00:29]} Kg6 {[%emt 0:00:38]} 49. Kg4 {[%emt 0:02:01]} h5+ {[%emt 0:00:23]} 50. Kh4 {[%emt 0:00:18]} Kf5 {[%emt 0:04:37]} 51. Kg3 {[%emt 0:03:36]} Ke6 {[%emt 0:01:59]} 52. Nc7+ {[%emt 0:00:42]} Kf5 {[%emt 0:00:29]} 53. f3 {[%emt 0:00:25]} h4+ {[%emt 0:01:49]} 54. Kxh4 {[%emt 0:00:14]} Kxf4 {[%emt 0:00:08]} 55. Ne6+ {[%emt 0:00:13]} Kxf3 {[%emt 0:00:15]} 56. Nxg7 {[%emt 0:00:05]} Ke4 {[%emt 0:00:19]} 57. Ne6 {[%emt 0:00:38]} Ke5 1/2-1/2

[Event "CZE-ch Women 2019"]
[Site "Prague"]
[Date "2019.06.19"]
[Round "5.1"]
[White "Olsarova, Karolina"]
[Black "Novosadova, Kristyna"]
[Result "1-0"]
[ECO "B28"]
[WhiteElo "2260"]
[BlackElo "2209"]
[Annotator "NA"]
[PlyCount "79"]
[EventDate "2019.06.15"]
[EventType "tourn"]
[EventCountry "CZE"]
[SourceTitle "playchess.com"]
[Source "ChessBase"]
[SourceQuality "1"]
[TimeControl "40/5400+30:1800+30"]

1. e4 {[%emt 0:00:00]} c5 {[%emt 0:00:00]} 2. Nf3 {[%emt 0:00:00]} a6 {[%emt 0:00:00]} 3. c4 {[%emt 0:00:00]} Nc6 {[%emt 0:00:00]} 4. Be2 {[%emt 0:00:38]} e5 {[%emt 0:02:33]} 5. O-O {[%emt 0:00:40]} d6 {[%emt 0:00:36]} 6. Nc3 {[%emt 0:03:39]} f5 {[%emt 0:00:35]} 7. exf5 {[%emt 0:03:55]} Bxf5 {[%emt 0:00:38]} 8. d3 {[%emt 0:00:47]} h6 {[%emt 0:01:33]} 9. Nd2 {[%emt 0:03:43]} Nf6 {[%emt 0:05:32]} 10. Nde4 {[%emt 0:09:17]} g6 {[%emt 0:14:08]} 11. Be3 {[%emt 0:07:12]} Bg7 {[%emt 0:03:17]} 12. Qd2 {[%emt 0:00:29]} Qd7 {[%emt 0:24:06]} 13. a3 {[%emt 0:13:53]} Nd4 {[%emt 0:03:58]} 14. Rab1 {[%emt 0:01:12]} Bxe4 {[%emt 0:22:48]} 15. dxe4 {[%emt 0:04:56]} O-O {[%emt 0:03:40]} 16. Bxh6 {[%emt 0:10:53]} Nxe2+ {[%emt 0:06:15]} 17. Nxe2 {[%emt 0:00:03]} Nxe4 {[%emt 0:01:00]} 18. Qd5+ {[%emt 0:00:04]} Qf7 {[%emt 0:00:14]} 19. Qxe4 {[%emt 0:00:04]} Bxh6 {[%emt 0:00:14]} 20. Rbd1 {[%emt 0:00:20]} Rad8 {[%emt 0:00:45]} 21. Rd3 {[%emt 0:00:34]} b5 {[%emt 0:01:56]} 22. b3 {[%emt 0:03:46]} Qf5 {[%emt 0:01:21]} 23. Qd5+ {[%emt 0:03:47]} Kg7 {[%emt 0:01:31]} 24. Ng3 {[%emt 0:01:32]} Qf7 {[%emt 0:02:01]} 25. Ne4 {[%emt 0:01:57]} Qxd5 {[%emt 0:01:21]} 26. Rxd5 {[%emt 0:00:03]} bxc4 {[%emt 0:00:18]} 27. bxc4 {[%emt 0:00:22]} Rf4 {[%emt 0:00:09]} 28. Nxc5 {[%emt 0:10:30]} Kf6 {[%emt 0:01:08]} 29. Nb7 {[%emt 0:00:15]} Rb8 {[%emt 0:01:00]} 30. Rxd6+ {[%emt 0:02:28]} Kg5 {[%emt 0:00:43]} 31. Nd8 {[%emt 0:01:24]} Rxc4 {[%emt 0:00:53]} 32. Nf7+ {[%emt 0:00:36]} Kh5 {[%emt 0:00:09]} 33. Nxe5 {[%emt 0:04:48]} Rc3 {[%emt 0:01:02]} 34. Rxg6 {[%emt 0:02:39]} Bf4 {[%emt 0:00:20]} 35. Rxa6 {[%emt 0:02:02]} Bxe5 {[%emt 0:00:39]} 36. Ra5 {[%emt 0:00:05]} Re8 {[%emt 0:00:37]} 37. f4 {[%emt 0:01:56]} Kg4 {[%emt 0:00:45]} 38. fxe5 {[%emt 0:00:24]} Rc2 {[%emt 0:00:10]} 39. e6 {[%emt 0:01:19]} Rc3 {[%emt 0:00:54]} 40. Raf5 {[%emt 0:01:49]} 1-0

[Event "CZE-ch Women 2019"]
[Site "Prague"]
[Date "2019.06.19"]
[Round "5.2"]
[White "Sikorova, Olga"]
[Black "Kulovana, Eva"]
[Result "1/2-1/2"]
[ECO "A14"]
[WhiteElo "2248"]
[BlackElo "2208"]
[Annotator "NA"]
[PlyCount "166"]
[EventDate "2019.06.15"]
[EventType "tourn"]
[EventCountry "CZE"]
[SourceTitle "playchess.com"]
[Source "ChessBase"]
[SourceQuality "1"]
[TimeControl "40/5400+30:1800+30"]

1. Nf3 {[%emt 0:00:00]} Nf6 {[%emt 0:00:00]} 2. c4 {[%emt 0:00:13]} e6 {[%emt 0:00:20]} 3. g3 {[%emt 0:00:29]} d5 {[%emt 0:00:13]} 4. Bg2 {[%emt 0:00:31]} Be7 {[%emt 0:00:17]} 5. O-O {[%emt 0:00:20]} O-O {[%emt 0:00:10]} 6. b3 {[%emt 0:00:21]} c5 {[%emt 0:00:54]} 7. Bb2 {[%emt 0:00:45]} Nc6 {[%emt 0:00:18]} 8. e3 {[%emt 0:00:16]} d4 {[%emt 0:00:18]} 9. exd4 {[%emt 0:00:47]} cxd4 {[%emt 0:00:07]} 10. d3 {[%emt 0:00:28]} e5 {[%emt 0:01:57]} 11. Na3 {[%emt 0:03:20]} a5 {[%emt 0:06:33]} 12. Nc2 {[%emt 0:06:56]} Nd7 {[%emt 0:12:49]} 13. Re1 {[%emt 0:03:44]} f6 {[%emt 0:12:16]} 14. Qe2 {[%emt 0:05:34]} Re8 {[%emt 0:12:44]} 15. Nh4 {[%emt 0:15:24]} g6 {[%emt 0:04:20]} 16. f4 {[%emt 0:04:48]} Bc5 {[%emt 0:13:49]} 17. Qd2 {[%emt 0:14:28]} Nb4 {[%emt 0:12:27]} 18. a3 {[%emt 0:02:43]} Nxc2 {[%emt 0:00:04]} 19. Qxc2 {[%emt 0:00:06]} Ra6 {[%emt 0:01:26]} 20. Rab1 {[%emt 0:16:11]} Rb6 {[%emt 0:00:41]} 21. Bd5+ {[%emt 0:03:23]} Kg7 {[%emt 0:00:56]} 22. Nf3 {[%emt 0:00:28]} Rd6 {[%emt 0:07:28]} 23. Bc1 {[%emt 0:02:52]} Rxd5 {[%emt 0:04:37]} 24. cxd5 {[%emt 0:00:01]} e4 {[%emt 0:00:08]} 25. Bd2 {[%emt 0:08:58]} exf3 {[%emt 0:01:08]} 26. Bxa5 {[%emt 0:03:44]} b6 {[%emt 0:02:21]} 27. Bd2 {[%emt 0:00:43]} Bb7 {[%emt 0:00:19]} 28. b4 {[%emt 0:00:49]} Bd6 {[%emt 0:00:45]} 29. Qc4 {[%emt 0:01:59]} Rxe1+ {[%emt 0:00:46]} 30. Rxe1 {[%emt 0:00:30]} Qa8 {[%emt 0:00:19]} 31. Qxd4 {[%emt 0:02:05]} Qxa3 {[%emt 0:01:44]} 32. Ra1 {[%emt 0:02:18]} Qb3 {[%emt 0:00:14]} 33. Kf2 {[%emt 0:00:33]} Bb8 {[%emt 0:01:16]} 34. Kxf3 {[%emt 0:00:19]} Qxd5+ {[%emt 0:01:08]} 35. Qxd5 {[%emt 0:00:03]} Bxd5+ {[%emt 0:00:07]} 36. Ke2 {[%emt 0:00:17]} Kf7 {[%emt 0:00:22]} 37. Be3 {[%emt 0:00:55]} Bb7 {[%emt 0:00:23]} 38. Rc1 {[%emt 0:00:38]} Ke6 {[%emt 0:00:23]} 39. Rc4 {[%emt 0:00:49]} f5 {[%emt 0:01:04]} 40. Bd4 {[%emt 0:00:38]} Bd6 {[%emt 0:00:38]} 41. b5 {[%emt 0:06:14]} Nc5 {[%emt 0:07:23]} 42. Bxc5 {[%emt 0:02:58]} Bxc5 {[%emt 0:01:35]} 43. d4 {[%emt 0:03:15]} Bd6 {[%emt 0:00:53]} 44. Ra4 {[%emt 0:01:04]} Bb8 {[%emt 0:01:46]} 45. Kd3 {[%emt 0:00:20]} h6 {[%emt 0:01:47]} 46. Ra1 {[%emt 0:03:16]} g5 {[%emt 0:02:14]} 47. Ke3 {[%emt 0:00:35]} Kd5 {[%emt 0:00:52]} 48. Rc1 {[%emt 0:00:24]} Bd6 {[%emt 0:01:01]} 49. h4 {[%emt 0:03:50]} g4 {[%emt 0:02:46]} 50. Kd3 {[%emt 0:01:41]} Ke6 {[%emt 0:00:53]} 51. Re1+ {[%emt 0:05:44]} Be4+ {[%emt 0:02:04]} 52. Kc4 {[%emt 0:00:04]} Kd7 {[%emt 0:02:04]} 53. Ra1 {[%emt 0:01:04]} Bb8 {[%emt 0:00:28]} 54. Ra6 {[%emt 0:01:16]} Kc7 {[%emt 0:00:52]} 55. Ra2 {[%emt 0:00:39]} Kb7 {[%emt 0:00:34]} 56. Ra1 {[%emt 0:01:18]} Bd6 {[%emt 0:00:39]} 57. Ra2 {[%emt 0:00:05]} Bf3 {[%emt 0:00:55]} 58. Rb2 {[%emt 0:01:49]} Ba3 {[%emt 0:00:30]} 59. Rc2 {[%emt 0:00:36]} Be4 {[%emt 0:01:20]} 60. Re2 {[%emt 0:00:47]} Bc1 {[%emt 0:00:51]} 61. Re1 {[%emt 0:02:05]} Bd2 {[%emt 0:00:46]} 62. Re2 {[%emt 0:00:03]} Ba5 {[%emt 0:00:39]} 63. Re3 {[%emt 0:00:07]} Kc7 {[%emt 0:00:37]} 64. Re2 {[%emt 0:00:01]} Kd6 {[%emt 0:00:09]} 65. Re3 {[%emt 0:00:19]} Bg2 {[%emt 0:03:40]} 66. Re5 {[%emt 0:01:08]} Bf1+ {[%emt 0:00:22]} 67. Kb3 {[%emt 0:00:11]} Bd3 {[%emt 0:00:24]} 68. Re3 {[%emt 0:00:15]} Bxb5 {[%emt 0:00:16]} 69. Re5 {[%emt 0:01:26]} Bd3 {[%emt 0:00:21]} 70. Re8 {[%emt 0:01:02]} b5 {[%emt 0:01:05]} 71. h5 {[%emt 0:01:12]} Kd5 {[%emt 0:05:45]} 72. Rh8 {[%emt 0:00:01]} Bb6 {[%emt 0:00:35]} 73. Rxh6 {[%emt 0:00:33]} Bxd4 {[%emt 0:00:07]} 74. Rh7 {[%emt 0:00:19]} Ke4 {[%emt 0:01:03]} 75. h6 {[%emt 0:00:53]} Bc4+ {[%emt 0:00:22]} 76. Kb4 {[%emt 0:00:15]} Kf3 {[%emt 0:00:41]} 77. Rd7 {[%emt 0:00:12]} Bf6 {[%emt 0:00:25]} 78. h7 {[%emt 0:00:43]} Kxg3 {[%emt 0:00:41]} 79. Rd6 {[%emt 0:00:37]} Bh8 {[%emt 0:00:50]} 80. Rd8 {[%emt 0:00:28]} Bg7 {[%emt 0:00:17]} 81. Rd7 {[%emt 0:00:08]} Bf6 {[%emt 0:00:44]} 82. Rd6 {[%emt 0:00:01]} Bb2 {[%emt 0:00:49]} 83. Rd2 {[%emt 0:00:03]} Bf6 {[%emt 0:00:37]} 1/2-1/2

[Event "CZE-ch Women 2019"]
[Site "Prague"]
[Date "2019.06.19"]
[Round "5.3"]
[White "Rodshtein, Tereza"]
[Black "Laurincova, Kristyna"]
[Result "1/2-1/2"]
[ECO "B77"]
[WhiteElo "2213"]
[BlackElo "1984"]
[Annotator "NA"]
[PlyCount "104"]
[EventDate "2019.06.15"]
[EventType "tourn"]
[EventCountry "CZE"]
[SourceTitle "playchess.com"]
[Source "ChessBase"]
[SourceQuality "1"]
[TimeControl "40/5400+30:1800+30"]

1. e4 {[%emt 0:00:00]} c5 {[%emt 0:00:00]} 2. Nf3 {[%emt 0:00:00]} d6 {[%emt 0:00:00]} 3. d4 {[%emt 0:00:00]} cxd4 {[%emt 0:00:00]} 4. Nxd4 {[%emt 0:00:00]} Nf6 {[%emt 0:00:00]} 5. Nc3 {[%emt 0:00:00]} g6 {[%emt 0:00:00]} 6. Be3 {[%emt 0:00:25]} Bg7 {[%emt 0:00:05]} 7. Bc4 {[%emt 0:01:27]} O-O {[%emt 0:00:14]} 8. f3 {[%emt 0:03:06]} Nc6 {[%emt 0:00:07]} 9. Qd2 {[%emt 0:00:10]} Nd7 {[%emt 0:00:09]} 10. O-O-O {[%emt 0:01:50]} Nb6 {[%emt 0:00:52]} 11. Be2 {[%emt 0:00:36]} Ne5 {[%emt 0:12:43]} 12. b3 {[%emt 0:00:19]} a6 {[%emt 0:11:33]} 13. h4 {[%emt 0:03:32]} d5 {[%emt 0:01:41]} 14. Bh6 {[%emt 0:12:52]} Bxh6 {[%emt 0:15:17]} 15. Qxh6 {[%emt 0:00:04]} f6 {[%emt 0:02:31]} 16. exd5 {[%emt 0:12:31]} Nxd5 {[%emt 0:04:16]} 17. Nxd5 {[%emt 0:13:10]} Qxd5 {[%emt 0:02:04]} 18. Qe3 {[%emt 0:00:53]} Qc5 {[%emt 0:02:20]} 19. h5 {[%emt 0:00:38]} g5 {[%emt 0:12:40]} 20. Qe4 {[%emt 0:03:35]} Kh8 {[%emt 0:05:10]} 21. Kb1 {[%emt 0:04:37]} f5 {[%emt 0:13:25]} 22. Qe3 {[%emt 0:00:20]} Nc6 {[%emt 0:02:02]} 23. g4 {[%emt 0:15:03]} fxg4 {[%emt 0:06:12]} 24. fxg4 {[%emt 0:00:24]} Rf4 {[%emt 0:04:06]} 25. c3 {[%emt 0:01:34]} Bxg4 {[%emt 0:01:47]} 26. Bxg4 {[%emt 0:00:22]} Rxg4 {[%emt 0:00:01]} 27. b4 {[%emt 0:04:54]} Qc4 {[%emt 0:03:37]} 28. Nxc6 Qxc6 {[%emt 0:00:01]} 29. Qxe7 {[%emt 0:04:43]} Re8 {[%emt 0:00:01]} 30. Qd7 {[%emt 0:04:19]} Qe4+ {[%emt 0:00:49]} 31. Qd3 {[%emt 0:01:45]} h6 {[%emt 0:01:12]} 32. Qxe4 {[%emt 0:02:39]} Rgxe4 {[%emt 0:00:01]} 33. Rd6 {[%emt 0:00:10]} R4e6 {[%emt 0:00:31]} 34. Rd7 {[%emt 0:00:36]} R8e7 {[%emt 0:00:14]} 35. Rd8+ {[%emt 0:00:05]} Kg7 {[%emt 0:00:20]} 36. Kc2 {[%emt 0:03:20]} Re5 {[%emt 0:01:24]} 37. a4 {[%emt 0:00:38]} g4 {[%emt 0:00:34]} 38. Rg1 {[%emt 0:01:32]} Rg5 {[%emt 0:00:04]} 39. Kb3 {[%emt 0:04:18]} Kf6 {[%emt 0:00:50]} 40. Rd6+ {[%emt 0:01:38]} Kg7 {[%emt 0:00:35]} 41. Rd4 {[%emt 0:30:38]} g3 {[%emt 0:30:21]} 42. Rd3 {[%emt 0:01:15]} g2 {[%emt 0:00:11]} 43. Rd2 {[%emt 0:00:08]} Rxh5 {[%emt 0:00:27]} 44. Rdxg2+ {[%emt 0:00:11]} Kf6 {[%emt 0:00:31]} 45. Rg6+ {[%emt 0:01:32]} Kf5 {[%emt 0:00:10]} 46. Rb6 {[%emt 0:00:00]} Rh3 {[%emt 0:00:00]} 47. Rf1+ {[%emt 0:00:00]} Kg5 {[%emt 0:00:00]} 48. Rg1+ {[%emt 0:00:00]} Kf5 {[%emt 0:00:00]} 49. a5 {[%emt 0:00:00]} Rc7 {[%emt 0:00:00]} 50. Rf1+ {[%emt 0:00:00]} Kg5 {[%emt 0:00:00]} 51. Rg1+ {[%emt 0:00:00]} Kf4 {[%emt 0:00:00]} 52. Rf1+ {[%emt 0:00:00]} Ke5 1/2-1/2

[Event "CZE-ch Women 2019"]
[Site "Prague"]
[Date "2019.06.19"]
[Round "5.4"]
[White "Pychova, Nela"]
[Black "Kanakova, Natalie"]
[Result "1/2-1/2"]
[ECO "A04"]
[WhiteElo "2174"]
[BlackElo "2201"]
[Annotator "NA"]
[PlyCount "96"]
[EventDate "2019.06.15"]
[EventType "tourn"]
[EventCountry "CZE"]
[SourceTitle "playchess.com"]
[Source "ChessBase"]
[SourceQuality "1"]
[TimeControl "40/5400+30:1800+30"]

1. Nf3 {[%emt 0:00:00]} c5 {[%emt 0:00:00]} 2. c4 {[%emt 0:00:00]} Nc6 {[%emt 0:00:20]} 3. Nc3 {[%emt 0:00:08]} e5 {[%emt 0:00:29]} 4. g3 {[%emt 0:00:15]} g6 {[%emt 0:00:43]} 5. Bg2 {[%emt 0:00:10]} Bg7 {[%emt 0:00:13]} 6. O-O {[%emt 0:00:11]} d6 {[%emt 0:02:01]} 7. a3 {[%emt 0:01:46]} a5 {[%emt 0:01:19]} 8. Ne1 {[%emt 0:02:00]} Be6 {[%emt 0:02:58]} 9. Nd5 {[%emt 0:03:18]} Nge7 {[%emt 0:01:21]} 10. Qa4 {[%emt 0:05:03]} O-O {[%emt 0:01:11]} 11. Nxe7+ {[%emt 0:06:51]} Qxe7 {[%emt 0:00:00]} 12. Nc2 {[%emt 0:01:39]} f5 {[%emt 0:13:22]} 13. Ne3 {[%emt 0:04:34]} Nd4 {[%emt 0:08:02]} 14. Qd1 {[%emt 0:02:02]} f4 {[%emt 0:09:09]} 15. Nd5 {[%emt 0:02:00]} Qg5 {[%emt 0:06:58]} 16. d3 {[%emt 0:19:29]} Qh5 {[%emt 0:10:27]} 17. f3 {[%emt 0:05:47]} g5 {[%emt 0:03:33]} 18. Nc7 {[%emt 0:07:03]} Rac8 {[%emt 0:02:36]} 19. Nxe6 {[%emt 0:00:31]} Nxe6 {[%emt 0:00:03]} 20. e3 {[%emt 0:05:53]} Rb8 {[%emt 0:02:18]} 21. b4 {[%emt 0:07:19]} axb4 {[%emt 0:09:32]} 22. axb4 {[%emt 0:00:04]} cxb4 {[%emt 0:01:17]} 23. Rb1 {[%emt 0:01:29]} Nc5 {[%emt 0:02:47]} 24. Rxb4 {[%emt 0:01:38]} Qg6 {[%emt 0:00:47]} 25. e4 {[%emt 0:02:04]} Qe6 {[%emt 0:01:41]} 26. Bb2 {[%emt 0:02:28]} Ra8 {[%emt 0:02:06]} 27. Qe2 {[%emt 0:04:22]} Ra2 {[%emt 0:01:57]} 28. Ra1 {[%emt 0:00:39]} Rfa8 {[%emt 0:00:08]} 29. Rxa2 {[%emt 0:00:23]} Rxa2 {[%emt 0:00:04]} 30. Qf1 {[%emt 0:00:09]} h5 {[%emt 0:04:44]} 31. Qb1 {[%emt 0:02:56]} Ra6 {[%emt 0:01:22]} 32. Qd1 {[%emt 0:01:12]} Kf7 {[%emt 0:05:46]} 33. Bf1 {[%emt 0:01:34]} Bf6 {[%emt 0:00:35]} 34. Rb5 {[%emt 0:01:30]} Qc8 {[%emt 0:03:56]} 35. Qc1 {[%emt 0:01:08]} Ne6 {[%emt 0:01:47]} 36. Bc3 {[%emt 0:06:36]} b6 {[%emt 0:01:39]} 37. Qb2 {[%emt 0:01:02]} Qc6 {[%emt 0:00:08]} 38. Qg2 {[%emt 0:00:36]} Ra3 {[%emt 0:00:29]} 39. Bb2 {[%emt 0:01:21]} Ra5 {[%emt 0:00:11]} 40. Rb3 {[%emt 0:01:56]} Nc5 {[%emt 0:01:22]} 41. Ra3 {[%emt 0:07:01]} Rxa3 {[%emt 0:10:38]} 42. Bxa3 {[%emt 0:00:03]} Qa4 {[%emt 0:00:33]} 43. Bxc5 {[%emt 0:02:13]} bxc5 {[%emt 0:00:04]} 44. Qh3 {[%emt 0:00:46]} h4 {[%emt 0:00:07]} 45. gxh4 {[%emt 0:01:37]} gxh4 {[%emt 0:00:06]} 46. Qf5 {[%emt 0:00:41]} Qd1 {[%emt 0:01:12]} 47. Qd7+ {[%emt 0:01:24]} Be7 {[%emt 0:00:07]} 48. Qf5+ {[%emt 0:00:17]} Bf6 {[%emt 0:00:09]} 1/2-1/2